bitfinex-derivatives/quotes_BNBF0:USTF0_20250331
["timestamp","ask_amount","ask_price","bid_price","bid_amount"]
[1743462330741,0.991,606.09,605.13,0.33050749]
[1743462330940,0.30344826,606.08,605.13,0.33050749]
[1743462331142,0.28738124,606.06,605.13,0.33050749]
[1743462333744,0.991,606.09,605.13,0.33050749]
[1743462345449,0.28741209,606.14,605.13,0.33050749]
[1743462345653,0.32964135,606.72,605.13,0.33050749]
[1743462345853,0.3034006,606.71,605.13,0.33050749]
[1743462346052,0.28727923,606.14,605.13,0.33050749]
[1743462346251,0.32965221,606.7,605.13,0.33050749]
[1743462346554,0.28727804,606.14,605.13,0.33050749]
[1743462346949,0.32965221,606.7,605.13,0.33050749]
[1743462347150,0.28727448,606.14,605.13,0.33050749]
[1743462347550,0.32965221,606.7,605.13,0.33050749]
[1743462347752,0.28727093,606.14,605.13,0.33050749]
[1743462348147,1.56165221,606.7,605.13,0.33050749]
[1743462348347,0.28727093,606.14,605.13,0.33050749]
[1743462348748,1.56165221,606.7,605.13,0.33050749]
[1743462348948,0.3033939,606.69,605.13,0.33050749]
[1743462349148,0.28727093,606.14,605.13,0.33050749]
[1743462349352,0.32966308,606.68,605.13,0.33050749]
[1743462349554,0.30340032,606.67,605.13,0.33050749]
[1743462349852,0.28727211,606.14,605.13,0.33050749]
[1743462350053,0.32966308,606.68,605.13,0.33050749]
[1743462350250,0.2872816,606.14,605.13,0.33050749]
[1743462350654,0.32966308,606.68,605.13,0.33050749]
[1743462350856,0.28729108,606.14,605.13,0.33050749]
[1743462351153,0.32966308,606.68,605.13,0.33050749]
[1743462351351,0.30340058,606.67,605.13,0.33050749]
[1743462351655,0.28729227,606.14,605.13,0.33050749]
[1743462351855,0.32966308,606.68,605.13,0.33050749]
[1743462352057,0.28730769,606.14,605.13,0.33050749]
[1743462352461,0.32966308,606.68,605.13,0.33050749]
[1743462352656,0.28730769,606.14,605.13,0.33050749]
[1743462353056,0.32966308,606.68,605.13,0.33050749]
[1743462353358,0.28732666,606.14,605.13,0.33050749]
[1743462353553,0.32966308,606.68,605.13,0.33050749]
[1743462353756,0.30339443,606.67,605.13,0.33050749]
[1743462353957,0.28732785,606.14,605.13,0.33050749]
[1743462354153,0.32966308,606.68,605.13,0.33050749]
[1743462354357,0.30339415,606.67,605.13,0.33050749]
[1743462354553,0.28732666,606.14,605.13,0.33050749]
[1743462354753,0.32966308,606.68,605.13,0.33050749]
[1743462355058,0.28731718,606.18,605.13,0.33050749]
[1743462355454,0.32966308,606.68,605.13,0.33050749]
[1743462355654,0.28731718,606.18,605.13,0.33050749]
[1743462356056,0.32966308,606.68,605.13,0.33050749]
[1743462356253,0.28731718,606.18,605.13,0.33050749]
[1743462356559,0.32966308,606.68,605.13,0.33050749]
[1743462356755,0.30338128,606.67,605.13,0.33050749]
[1743462356951,0.28731599,606.17,605.13,0.33050749]
[1743462357159,0.32966308,606.68,605.13,0.33050749]
[1743462357355,0.30338128,606.67,605.13,0.33050749]
[1743462357555,0.2873148,606.16,605.13,0.33050749]
[1743462357755,0.32966308,606.68,605.13,0.33050749]
[1743462357956,0.30338128,606.67,605.13,0.33050749]
[1743462358156,0.28730294,606.2,605.13,0.33050749]
[1743462358357,0.32966308,606.68,605.13,0.33050749]
[1743462358559,0.30337393,606.67,605.13,0.33050749]
[1743462358759,0.28729939,606.21,605.13,0.33050749]
[1743462358960,0.32966308,606.68,605.13,0.33050749]
[1743462359255,0.2872982,606.21,605.13,0.33050749]
[1743462359662,0.32966308,606.68,605.13,0.33050749]
[1743462359854,0.2872982,606.21,605.13,0.33050749]
[1743462360258,0.32966308,606.68,605.13,0.33050749]
[1743462360458,0.28728871,606.21,605.13,0.33050749]
[1743462360659,0.30337885,606.2,605.13,0.33050749]
[1743462361061,0.30337885,606.19,605.13,0.33050749]
[1743462361255,0.30337885,606.2,605.13,0.33050749]
[1743462361460,0.30337885,606.19,605.14,1.8190132]
[1743462361660,0.28728753,606.21,604.66,2.52438085]
[1743462361661,0.30337885,606.18,605.16,0.3304911]
[1743462361960,0.30337885,606.17,605.16,0.3304911]
[1743462362161,0.30337885,606.16,605.16,0.3304911]
[1743462362361,0.30337885,606.15,605.16,0.3304911]
[1743462362557,0.30337885,606.2,605.16,0.3304911]
[1743462362761,0.30337885,606.19,605.16,0.3304911]
[1743462362961,0.30337885,606.2,605.16,0.3304911]
[1743462363262,0.30337611,606.19,605.16,2.1495043]
[1743462363463,0.28728753,606.21,605.17,2.64302013]
[1743462363464,0.30337611,606.2,605.17,2.64302013]
[1743462363662,0.32966308,606.68,605.17,2.64302013]
[1743462363663,0.30337611,606.19,605.19,0.33047472]
[1743462363865,0.30337611,606.18,605.19,0.33047472]
[1743462364158,0.30337611,606.17,605.19,0.33047472]
[1743462364564,0.30337611,606.16,605.19,0.33047472]
[1743462364759,0.30337611,606.2,605.19,0.33047472]
[1743462364963,0.30337611,606.19,605.2,2.64302013]
[1743462365164,0.30337611,606.18,605.22,0.33045834]
[1743462365365,0.30337611,606.2,605.22,0.33045834]
[1743462365566,0.30337611,606.19,605.22,0.33045834]
[1743462365861,0.28726737,606.21,605.22,0.33045834]
[1743462375767,0.32966308,606.68,605.22,0.33045834]
[1743462376064,0.3033275,606.67,605.22,0.33045834]
[1743462376264,0.5906174,606.67,605.22,0.33045834]
[1743462376563,0.3033275,606.66,605.22,0.33045834]
[1743462377667,0.3033268,606.65,605.22,0.33045834]
[1743462377964,0.3033268,606.64,605.22,0.33045834]
[1743462378164,0.3033268,606.63,605.22,0.33045834]
[1743462378369,0.3033268,606.62,605.22,0.33045834]
[1743462378672,0.3033268,606.61,605.22,0.33045834]
[1743462379073,0.3033268,606.6,605.22,0.33045834]
[1743462379274,0.28729108,606.61,605.22,0.33045834]
[1743462379481,0.3033268,606.6,605.22,0.33045834]
[1743462380980,0.30332761,606.59,605.22,0.33045834]
[1743462381183,0.30332761,606.6,605.22,0.33045834]
[1743462381381,0.30332761,606.59,605.22,0.33045834]
[1743462381597,0.30332761,606.6,605.22,0.33045834]
[1743462381783,0.30332761,606.59,605.22,0.33045834]
[1743462382082,0.30332761,606.58,605.22,0.33045834]
[1743462384082,0.28728753,606.59,605.22,0.33045834]
[1743462384282,0.30332714,606.58,605.22,0.33045834]
[1743462384478,1.37732714,606.58,605.22,0.33045834]
[1743462384684,0.30332714,606.57,605.22,0.33045834]
[1743462385078,0.59061467,606.57,605.22,0.33045834]
[1743462385282,0.30332714,606.56,605.22,0.33045834]
[1743462387291,0.28728753,606.57,605.22,0.33045834]
[1743462387486,0.30332748,606.56,605.22,0.33045834]
[1743462387891,0.30332748,606.57,605.22,0.33045834]
[1743462388086,0.28728516,606.55,605.22,0.33045834]
[1743462388288,0.30332748,606.54,605.22,0.33045834]
[1743462390996,0.59058418,606.53,605.22,0.33045834]
[1743462391197,0.30332748,606.52,605.22,0.33045834]
[1743462393795,0.2872567,606.53,605.22,0.33045834]
[1743462394000,0.30332709,606.52,605.22,0.33045834]
[1743462396894,0.30332709,606.57,605.22,0.33045834]
[1743462397094,0.30332681,606.56,605.22,0.33045834]
[1743462397302,0.28724366,606.51,605.22,0.33045834]
[1743462397501,0.30332681,606.5,605.22,0.33045834]
[1743462398599,0.28724366,606.51,605.22,0.33045834]
[1743462398803,0.30332413,606.5,605.22,0.33045834]
[1743462399901,0.30332413,606.57,605.22,0.33045834]
[1743462400203,0.28724366,606.49,605.22,0.33045834]
[1743462400403,0.30332413,606.48,605.22,0.33045834]
[1743462400602,0.28723773,606.48,605.22,0.33045834]
[1743462400804,0.30332413,606.47,605.22,0.33045834]
[1743462401008,0.28723773,606.48,605.22,0.33045834]
[1743462402801,1.074,606.58,605.22,0.33045834]
[1743462403001,0.28723892,606.47,605.22,0.33045834]
[1743462403405,1.074,606.58,605.22,0.33045834]
[1743462403606,0.28724247,606.46,605.22,0.33045834]
[1743462403906,1.074,606.58,605.22,0.33045834]
[1743462404108,0.30327458,606.57,605.22,0.33045834]
[1743462404307,0.28724247,606.45,605.22,0.33045834]
[1743462404500,1.074,606.58,605.22,0.33045834]
[1743462405005,0.28723536,606.44,605.22,0.33045834]
[1743462405209,1.074,606.58,605.22,0.33045834]
[1743462405506,0.28723773,606.43,605.22,0.33045834]
[1743462406008,1.074,606.58,605.22,0.33045834]
[1743462406208,0.28723773,606.42,605.22,0.33045834]
[1743462406407,1.074,606.58,605.22,0.33045834]
[1743462406802,0.28723655,606.41,605.22,0.33045834]
[1743462407004,1.074,606.58,605.22,0.33045834]
[1743462407205,0.30327489,606.57,605.22,0.33045834]
[1743462407405,0.28723655,606.4,605.22,0.33045834]
[1743462407606,1.074,606.58,605.22,0.33045834]
[1743462407807,0.30327605,606.57,605.22,0.33045834]
[1743462408005,0.28723773,606.39,605.22,0.33045834]
[1743462408204,1.074,606.58,605.22,0.33045834]
[1743462408509,0.28723773,606.39,605.22,0.33045834]
[1743462408902,1.074,606.58,605.22,0.33045834]
[1743462409103,0.28723062,606.39,605.22,0.33045834]
[1743462409503,1.074,606.58,605.22,0.33045834]
[1743462409709,0.28723062,606.39,605.22,0.33045834]
[1743462410110,1.074,606.58,605.22,0.33045834]
[1743462410312,0.28723062,606.39,605.22,0.33045834]
[1743462410707,0.32966308,606.68,605.22,0.33045834]
[1743462410908,0.28723062,606.39,605.22,0.33045834]
[1743462411309,0.32966308,606.68,605.22,0.33045834]
[1743462411511,0.3032746,606.67,605.22,0.33045834]
[1743462411806,0.28721876,606.39,605.22,0.33045834]
[1743462412005,0.32966308,606.68,605.22,0.33045834]
[1743462412206,0.28721995,606.66,605.22,0.33045834]
[1743462412410,0.30328153,606.65,605.22,0.33045834]
[1743462413209,0.30328327,606.64,605.22,0.33045834]
[1743462413410,1.192,606.64,605.22,0.33045834]
[1743462414213,0.30328355,606.63,605.22,0.33045834]
[1743462415012,0.28725433,606.62,605.22,0.33045834]
[1743462415415,0.30328382,606.61,605.22,0.33045834]
[1743462416414,0.28725433,606.62,605.22,0.33045834]
[1743462416614,0.3032839,606.61,605.22,0.33045834]
[1743462418018,0.28725433,606.62,605.22,0.33045834]
[1743462418317,0.30328356,606.61,605.22,0.33045834]
[1743462418918,0.28725433,606.62,605.22,0.33045834]
[1743462419413,0.30328126,606.61,605.22,0.33045834]
[1743462419614,0.28725433,606.62,605.22,0.33045834]
[1743462420618,0.30328328,606.61,605.22,0.33045834]
[1743462421118,0.28725077,606.6,605.22,0.33045834]
[1743462421513,0.30328328,606.59,605.22,0.33045834]
[1743462424016,0.28723062,606.58,605.22,0.33045834]
[1743462424419,0.30328328,606.57,605.22,0.33045834]
[1743462425615,0.28723062,606.58,606.57,0.01057626]
[1743462425816,0.59051389,606.58,605.22,0.33045834]
[1743462426016,0.30328327,606.57,605.22,0.33045834]
[1743462427223,0.59051507,606.56,605.22,0.33045834]
[1743462427418,0.30328327,606.55,605.22,0.33045834]
[1743462428818,0.30328371,606.54,605.22,0.33045834]
[1743462429021,0.30328371,606.53,605.22,0.33045834]
[1743462429223,0.30328371,606.55,605.22,0.33045834]
[1743462429420,0.2872318,606.56,605.22,0.33045834]
[1743462429421,0.30328371,606.54,605.22,0.33045834]
[1743462429625,0.30328371,606.53,605.22,0.33045834]
[1743462429826,0.30328371,606.55,605.22,0.33045834]
[1743462430021,1.249,606.52,605.22,0.33045834]
[1743462430726,1.23655057,606.52,605.22,0.33045834]
[1743462431626,0.30328166,606.51,605.22,0.33045834]
[1743462433330,1.23655057,606.52,605.22,0.33045834]
[1743462433629,0.30328362,606.51,605.22,0.33045834]
[1743462434433,1.23655057,606.52,605.22,0.33045834]
[1743462434730,0.30336237,606.51,605.22,0.33045834]
[1743462436331,0.28727567,606.5,605.22,0.33045834]
[1743462436525,0.30336237,606.49,605.22,0.33045834]
[1743462438433,0.30336936,606.48,605.22,0.33045834]
[1743462438633,0.30336936,606.49,605.22,0.33045834]
[1743462438827,0.30336936,606.48,605.22,0.33045834]
[1743462439027,0.30336936,606.51,605.22,0.33045834]
[1743462439233,0.28732785,606.47,605.22,0.33045834]
[1743462439429,0.30336951,606.46,605.22,0.33045834]
[1743462441734,0.30337343,606.45,605.22,0.33045834]
[1743462441933,0.30337343,606.51,605.22,0.33045834]
[1743462442132,0.28731836,606.44,605.22,0.33045834]
[1743462442435,0.30337343,606.43,605.22,0.33045834]
[1743462442835,0.30337343,606.43,605.22,0.32630296]
[1743462444837,0.30336952,606.42,605.22,0.32630296]
[1743462445136,0.30336952,606.41,605.22,0.32630296]
[1743462445435,0.30336952,606.4,605.22,0.32630296]
[1743462448034,0.30336958,606.39,605.22,0.32630296]
[1743462448237,0.28727685,606.39,605.22,0.32630296]
[1743462448539,0.30336958,606.38,605.22,0.32630296]
[1743462449537,0.28727685,606.39,605.22,0.32630296]
[1743462449741,0.30336878,606.38,605.22,0.32630296]
[1743462451046,0.30336878,606.67,605.22,0.32630296]
[1743462451244,0.32966308,606.68,605.22,0.32630296]
[1743462451245,0.28727211,606.37,605.22,0.32630296]
[1743462451437,0.30336878,606.36,605.22,0.32630296]
[1743462451840,0.5906741,606.35,605.22,0.32630296]
[1743462452044,0.30336878,606.34,605.22,0.32630296]
[1743462452746,0.28730532,606.35,605.22,0.32630296]
[1743462452943,0.30336868,606.34,605.22,0.32630296]
[1743462454043,0.59065028,606.33,605.22,0.32630296]
[1743462454242,0.30336868,606.32,605.22,0.32630296]
[1743462456538,0.2872816,606.33,605.22,0.32630296]
[1743462456742,0.32966308,606.68,605.22,0.32630296]
[1743462456943,0.30333862,606.67,605.22,0.32630296]
[1743462457336,0.59055501,606.67,605.22,0.32630296]
[1743462457546,0.30333862,606.66,605.22,0.32630296]
[1743462460044,0.30333862,606.67,605.22,0.32630296]
[1743462460345,0.2872733,606.65,605.22,0.32630296]
[1743462460541,0.30333862,606.64,605.22,0.32630296]
[1743462462443,0.30334127,606.63,605.22,0.32630296]
[1743462462643,0.30334127,606.64,605.22,0.32630296]
[1743462462839,0.30334127,606.63,605.22,0.32630296]
[1743462463044,0.30334127,606.64,605.22,0.32630296]
[1743462463240,0.30334127,606.63,605.22,0.32630296]
[1743462463444,0.30334127,606.64,605.22,0.32630296]
[1743462466042,0.30334127,606.63,605.22,0.32630296]
[1743462466247,0.30334127,606.62,605.22,0.32630296]
[1743462471946,0.30334127,606.67,605.22,0.32630296]
[1743462472150,0.28724959,606.61,605.22,0.32630296]
[1743462472351,0.30334147,606.6,605.22,0.32630296]
[1743462473749,0.30333681,606.59,605.22,0.32630296]
[1743462473950,0.30333681,606.58,605.22,0.32630296]
[1743462474151,0.28724959,606.61,605.22,0.32630296]
[1743462474152,0.30333681,606.57,605.22,0.32630296]
[1743462474353,0.30333681,606.56,605.22,0.32630296]
[1743462474557,0.30333681,606.55,605.22,0.32630296]
[1743462474755,0.30333681,606.54,605.22,0.32630296]
[1743462474951,0.30333681,606.53,605.22,0.32630296]
[1743462475155,0.30333681,606.52,605.22,0.32630296]
[1743462475352,0.30333681,606.54,605.22,0.32630296]
[1743462475553,0.28724603,606.55,605.22,0.32630296]
[1743462475554,0.30333681,606.53,605.22,0.32630296]
[1743462475752,0.30333681,606.54,605.22,0.32630296]
[1743462475952,0.30333681,606.53,605.22,0.32630296]
[1743462476257,0.30333681,606.52,605.22,0.32630296]
[1743462476458,0.28724603,606.55,605.22,0.32630296]
[1743462476459,0.30333681,606.51,605.22,0.32630296]
[1743462476659,0.30333681,606.5,605.22,0.32630296]
[1743462476855,0.30333681,606.54,605.22,0.32630296]
[1743462477158,0.28724603,606.55,605.22,0.32630296]
[1743462477159,0.30333681,606.53,605.22,0.32630296]
[1743462477458,0.28724603,606.55,605.22,0.32630296]
[1743462477459,0.30333681,606.52,605.22,0.32630296]
[1743462477658,0.30333681,606.51,605.22,0.32630296]
[1743462477953,0.30333681,606.5,605.22,0.32630296]
[1743462478154,0.30333681,606.49,605.22,0.32630296]
[1743462478459,0.30333681,606.48,605.22,0.32630296]
[1743462478653,0.30333681,606.47,605.22,0.32630296]
[1743462478854,0.30333681,606.46,605.22,0.32630296]
[1743462479058,0.30333681,606.5,605.22,0.32630296]
[1743462479255,0.30333681,606.49,605.22,0.32630296]
[1743462479458,0.30333681,606.5,605.22,0.32630296]
[1743462479660,0.30333681,606.49,605.22,0.32630296]
[1743462479857,0.30333681,606.48,605.22,0.32630296]
[1743462480059,0.30333681,606.47,605.22,0.32630296]
[1743462480259,0.30333681,606.46,605.22,0.32630296]
[1743462480457,0.30333681,606.5,605.22,0.32630296]
[1743462480661,0.28723892,606.51,605.22,0.32630296]
[1743462480662,0.30333681,606.49,605.22,0.32630296]
[1743462480856,0.30333681,606.5,605.22,0.32630296]
[1743462481057,0.30333681,606.49,605.22,0.32630296]
[1743462481257,0.30333681,606.5,605.22,0.32630296]
[1743462482960,0.30335271,606.49,605.22,0.32630296]
[1743462483166,0.30335271,606.48,605.22,0.32630296]
[1743462483464,0.30335271,606.47,605.22,0.32630296]
[1743462483662,0.30335271,606.46,605.22,0.32630296]
[1743462483865,0.30335271,606.5,605.22,0.32630296]
[1743462484066,0.28724129,606.45,605.22,0.32630296]
[1743462484365,0.30335271,606.44,605.22,0.32630296]
[1743462484564,0.3033532,606.43,605.22,0.32630296]
[1743462484765,0.3033532,606.44,605.22,0.32630296]
[1743462484963,0.3033532,606.43,605.22,0.32630296]
[1743462485165,0.3033532,606.42,605.22,0.32630296]
[1743462485365,0.3033532,606.44,605.22,0.32630296]
[1743462485664,0.3033532,606.43,605.22,0.32630296]
[1743462485865,0.3033532,606.44,605.22,0.32630296]
[1743462486167,0.3033532,606.43,605.22,0.32630296]
[1743462486365,0.3033532,606.44,605.22,0.32630296]
[1743462486565,0.3033532,606.43,605.22,0.32630296]
[1743462486767,0.3033532,606.42,605.22,0.32630296]
[1743462486963,0.3033532,606.41,605.22,0.32630296]
[1743462487162,0.2872401,606.42,605.22,0.32630296]
[1743462487368,0.3033532,606.41,605.22,0.32630296]
[1743462488165,0.3033532,606.41,605.23,1.82408775]
[1743462488366,0.3033532,606.41,605.25,0.33044196]
[1743462490869,0.2872401,606.42,605.25,0.33044196]
[1743462491069,0.30334745,606.41,605.25,0.33044196]
[1743462493071,0.30334745,606.4,605.25,0.33044196]
[1743462493264,0.30334745,606.39,605.25,0.33044196]
[1743462495968,0.30334745,606.48,605.25,0.33044196]
[1743462496171,0.28725196,606.38,605.25,0.33044196]
[1743462496371,0.901,606.49,605.25,0.33044196]
[1743462496674,0.2872567,606.37,605.25,0.33044196]
[1743462496976,0.901,606.49,605.25,0.33044196]
[1743462497371,0.28726737,606.36,605.25,0.33044196]
[1743462497672,0.901,606.49,605.25,0.33044196]
[1743462498073,0.28728516,606.35,605.25,0.33044196]
[1743462498275,0.901,606.49,605.25,0.33044196]
[1743462498471,0.28734327,606.34,605.25,0.33044196]
[1743462498876,0.901,606.49,605.25,0.33044196]
[1743462499068,0.28734209,606.33,605.25,0.33044196]
[1743462499474,0.901,606.49,605.25,0.33044196]
[1743462499670,0.28734327,606.32,605.25,0.33044196]
[1743462500074,0.901,606.49,605.25,0.33044196]
[1743462500275,0.30337034,606.48,605.25,0.33044196]
[1743462500476,0.28734446,606.31,605.25,0.33044196]
[1743462500779,0.901,606.49,605.25,0.33044196]
[1743462501076,0.28735869,606.3,605.25,0.33044196]
[1743462501269,0.901,606.49,605.25,0.33044196]
[1743462501474,0.30339544,606.48,605.25,0.33044196]
[1743462501675,0.28735869,606.29,605.25,0.33044196]
[1743462501976,0.30339544,606.48,605.25,0.33044196]
[1743462501977,0.901,606.49,605.25,0.33044196]
[1743462502176,0.28733734,606.28,605.25,0.33044196]
[1743462502576,0.901,606.49,605.25,0.33044196]
[1743462502776,0.28733734,606.27,605.25,0.33044196]
[1743462503077,0.901,606.49,605.25,0.33044196]
[1743462503377,0.28733734,606.26,605.25,0.33044196]
[1743462503779,0.901,606.49,605.25,0.33044196]
[1743462503974,0.28734446,606.25,605.25,0.33044196]
[1743462504478,0.901,606.49,605.25,0.33044196]
[1743462504678,0.28733497,606.24,605.25,0.33044196]
[1743462504878,0.901,606.49,605.25,0.33044196]
[1743462505073,0.30338097,606.48,605.25,0.33044196]
[1743462505273,0.28733497,606.23,605.25,0.33044196]
[1743462505579,0.901,606.49,605.25,0.33044196]
[1743462505779,0.28734446,606.22,605.25,0.33044196]
[1743462506175,0.901,606.49,605.25,0.33044196]
[1743462506375,0.28734446,606.21,605.25,0.33044196]
[1743462506780,0.901,606.49,605.25,0.33044196]
[1743462506975,0.28734446,606.2,605.25,0.33044196]
[1743462507380,0.901,606.49,605.25,0.33044196]
[1743462507582,0.28732666,606.24,605.25,0.33044196]
[1743462508081,0.901,606.49,605.25,0.33044196]
[1743462508379,0.28732192,606.26,605.25,0.33044196]
[1743462508579,0.901,606.49,605.25,0.33044196]
[1743462508780,0.28732192,606.25,605.25,0.33044196]
[1743462509177,0.901,606.49,605.25,0.33044196]
[1743462509380,0.28732192,606.25,605.25,0.33044196]
[1743462509881,0.901,606.49,605.25,0.33044196]
[1743462510081,0.28731599,606.25,605.25,0.33044196]
[1743462510279,0.901,606.49,605.25,0.33044196]
[1743462510481,0.30336566,606.48,605.25,0.33044196]
[1743462510780,0.28732666,606.24,605.25,0.33044196]
[1743462510981,0.901,606.49,605.25,0.33044196]
[1743462511177,0.28735039,606.23,605.25,0.33044196]
[1743462511476,0.901,606.49,605.25,0.33044196]
[1743462511782,0.2873326,606.22,605.25,0.33044196]
[1743462512086,0.901,606.49,605.25,0.33044196]
[1743462512383,0.2873326,606.21,605.25,0.33044196]
[1743462512682,0.901,606.49,605.25,0.33044196]
[1743462513081,0.2873326,606.2,605.25,0.33044196]
[1743462513276,0.901,606.49,605.25,0.33044196]
[1743462513677,0.28734802,606.19,605.25,0.33044196]
[1743462513882,0.901,606.49,605.25,0.33044196]
[1743462514279,0.28734802,606.18,605.25,0.33044196]
[1743462514482,0.901,606.49,605.25,0.33044196]
[1743462514978,0.28734802,606.17,605.25,0.33044196]
[1743462515183,0.901,606.49,605.25,0.33044196]
[1743462515379,0.2874026,606.16,605.25,0.33044196]
[1743462515786,0.901,606.49,605.25,0.33044196]
[1743462515984,0.2874026,606.15,605.25,0.33044196]
[1743462516386,0.901,606.49,605.25,0.33044196]
[1743462516788,0.28740141,606.14,605.25,0.33044196]
[1743462516983,0.901,606.49,605.25,0.33044196]
[1743462517382,0.28740141,606.13,605.25,0.33044196]
[1743462517586,0.901,606.49,605.25,0.33044196]
[1743462517987,0.28740023,606.12,605.25,0.33044196]
[1743462518186,0.901,606.49,605.25,0.33044196]
[1743462518390,0.2874026,606.11,605.25,0.33044196]
[1743462518887,0.901,606.49,605.25,0.33044196]
[1743462519090,0.28740379,606.11,605.25,0.33044196]
[1743462519287,0.901,606.49,605.25,0.33044196]
[1743462519686,0.2874026,606.11,605.25,0.33044196]
[1743462519890,0.901,606.49,605.25,0.33044196]
[1743462520289,0.28738717,606.17,605.25,0.33044196]
[1743462520487,0.901,606.49,605.25,0.33044196]
[1743462520993,0.28738717,606.17,605.25,0.33044196]
[1743462521193,0.30340788,606.48,605.25,0.33044196]
[1743462521394,0.901,606.49,605.25,0.33044196]
[1743462521395,0.28739904,606.16,605.25,0.33044196]
[1743462521795,0.901,606.49,605.25,0.33044196]
[1743462521992,0.28739429,606.15,605.25,0.33044196]
[1743462522393,0.32966308,606.68,605.25,0.33044196]
[1743462522590,0.28737056,606.14,605.25,0.33044196]
[1743462522995,0.32966308,606.68,605.25,0.33044196]
[1743462523193,0.30341658,606.67,605.25,0.33044196]
[1743462523393,0.287367,606.13,605.25,0.33044196]
[1743462523591,0.32966308,606.68,605.25,0.33044196]
[1743462523896,0.28730413,606.12,605.25,0.33044196]
[1743462524090,0.32966308,606.68,605.25,0.33044196]
[1743462524296,0.30341484,606.67,605.25,0.33044196]
[1743462524497,0.28730057,606.11,605.25,0.33044196]
[1743462524696,0.32966308,606.68,605.25,0.33044196]
[1743462524998,0.28730532,606.11,605.25,0.33044196]
[1743462525396,0.32966308,606.68,605.25,0.33044196]
[1743462525596,0.30341227,606.67,605.25,0.33044196]
[1743462525792,0.28729939,606.11,605.25,0.33044196]
[1743462525997,0.885,606.66,605.25,0.33044196]
[1743462526192,0.30341227,606.65,605.25,0.33044196]
[1743462526397,0.2872982,606.11,605.25,0.33044196]
[1743462526697,0.30341209,606.1,605.25,0.33044196]
[1743462526897,0.885,606.66,605.25,0.33044196]
[1743462526898,0.28729701,606.11,605.25,0.33044196]
[1743462527093,0.30341209,606.1,605.25,0.33044196]
[1743462529195,0.30341209,606.09,605.25,0.33044196]
[1743462529505,0.30341209,606.08,605.25,0.33044196]
[1743462529696,0.2873492,606.11,605.25,0.33044196]
[1743462529899,0.3034145,606.1,605.25,0.33044196]
[1743462532101,0.3034145,606.09,605.25,0.33044196]
[1743462532301,0.3034145,606.1,605.25,0.33044196]
[1743462532502,0.28732904,606.11,605.25,0.33044196]
[1743462532696,0.30341628,606.1,605.25,0.33044196]
[1743462534096,0.28732904,606.11,605.25,0.33044196]
[1743462534400,0.30341304,606.1,605.25,0.33044196]
[1743462535004,0.30341304,606.09,605.25,0.33044196]
[1743462535200,0.28731243,606.11,605.25,0.33044196]
[1743462535398,0.30341304,606.1,605.25,0.33044196]
[1743462538005,0.30341304,606.63,605.25,0.33044196]
[1743462538205,0.2873065,606.11,605.25,0.33044196]
[1743462538407,0.30341304,606.1,605.25,0.33044196]
[1743462538604,0.30341304,606.63,605.25,0.33044196]
[1743462538804,0.28724484,606.11,605.25,0.33044196]
[1743462539005,0.30341304,606.1,605.25,0.33044196]
[1743462539307,0.30341304,606.09,605.25,0.33044196]
[1743462539509,0.30341304,606.1,605.25,0.33044196]
[1743462539707,0.28724484,606.11,605.25,0.33044196]
[1743462540708,0.30339432,606.1,605.25,0.33044196]
[1743462541102,0.28723655,606.17,605.25,0.33044196]
[1743462541306,0.30339401,606.16,605.25,0.33044196]
[1743462544009,3.413666,606.66,605.25,0.33044196]
[1743462544209,0.28729701,606.15,605.25,0.33044196]
[1743462544612,2.528666,606.63,605.25,0.33044196]
[1743462544814,0.287265,606.14,605.25,0.33044196]
[1743462545213,2.528666,606.63,605.25,0.33044196]
[1743462545416,0.28726855,606.13,605.25,0.33044196]
[1743462545809,0.885,606.66,605.25,0.33044196]
[1743462546011,0.28726381,606.12,605.25,0.33044196]
[1743462546513,0.885,606.66,605.25,0.33044196]
[1743462546708,0.28726381,606.11,605.25,0.33044196]
[1743462547013,0.885,606.66,605.25,0.33044196]
[1743462547214,0.287265,606.11,605.25,0.33044196]
[1743462547613,0.885,606.66,605.25,0.33044196]
[1743462547813,0.28728634,606.11,605.25,0.33044196]
[1743462548209,0.885,606.66,605.25,0.33044196]
[1743462548408,0.28728634,606.11,605.25,0.33044196]
[1743462548814,0.885,606.66,605.25,0.33044196]
[1743462549116,0.28728516,606.11,605.25,0.33044196]
[1743462549414,0.885,606.66,605.25,0.33044196]
[1743462549611,0.28728634,606.11,605.25,0.33044196]
[1743462550011,0.885,606.66,605.25,0.33044196]
[1743462550211,0.30341546,606.65,605.25,0.33044196]
[1743462550416,0.28728516,606.11,605.25,0.33044196]
[1743462550617,0.885,606.66,605.25,0.33044196]
[1743462550820,0.30341546,606.65,605.25,0.33044196]
[1743462551024,0.28728516,606.11,605.25,0.33044196]
[1743462551224,0.885,606.66,605.25,0.33044196]
[1743462551526,0.28728634,606.11,605.25,0.33044196]
[1743462551722,0.32967938,606.65,605.25,0.33044196]
[1743462551923,0.30346615,606.64,605.25,0.33044196]
[1743462552120,0.28730294,606.1,605.25,0.33044196]